fUSD/lending_fUSD_20251003
["ID","MTS","AMOUNT","RATE_DAILY","PERIOD"]
[388873267,1759451436436,-151.0,0.00019726,2]
[388873268,1759451436445,-490.43272,0.00019726,2]
[388873269,1759451436456,-151.0,0.00019726,2]
[388873270,1759451436467,-490.43272,0.00019726,2]
[388873271,1759451436477,-344550.01,0.00019726,2]
[388873272,1759451436486,-600.0,0.00019945,2]
[388873273,1759451436496,-601.39760918,0.0002,2]
[388873274,1759451436506,-150.0,0.0002,2]
[388873275,1759451436515,-420.0,0.00020022,2]
[388873276,1759451436527,-4965.44779193,0.00020032,2]
[388873277,1759451436539,-19875.8,0.00020115,2]
[388873278,1759451436550,-151.0,0.00020115,5]
[388873279,1759451436564,-151.0,0.00020115,5]
[388873280,1759451436574,-151.0,0.00020115,5]
[388873281,1759451436583,-151.0,0.00020115,5]
[388873282,1759451436594,-151.0,0.00020115,5]
[388873283,1759451436604,-245.0,0.00020115,5]
[388873284,1759451436613,-1680.0,0.0002012,2]
[388873285,1759451436622,-600.0,0.00020169,2]
[388873286,1759451436632,-500.0,0.00020173,2]
[388873287,1759451436641,-500.21815192,0.00020173,2]
[388873288,1759451436652,-500.0,0.00020173,2]
[388873289,1759451436661,-500.0,0.00020173,2]
[388873290,1759451436671,-500.0,0.00020173,2]
[388873291,1759451436679,-500.0,0.00020173,2]
[388873292,1759451436689,-500.0,0.00020173,2]
[388873293,1759451436699,-589.54780581,0.00020173,2]
[388873294,1759451436709,-160.0357384,0.00020173,2]
[388873295,1759451436719,-160.02736042,0.00020173,2]
[388873296,1759451436728,-500.0,0.00020173,2]
[388873297,1759451436738,-160.0202677,0.00020173,2]
[388873298,1759451436747,-500.0,0.00020173,2]
[388873299,1759451436757,-160.01326358,0.00020173,2]
[388873300,1759451436767,-601.39760918,0.000202,2]
[388873301,1759451436776,-3288.17453594,0.00020234,2]
[388873302,1759451436786,-2500.35,0.0002028,2]
[388873303,1759451436796,-600.0,0.00020329,2]
[388873304,1759451436806,-2500.0,0.00020376,2]
[388873305,1759451436816,-165.64,0.00020385,2]
[388873306,1759451436828,-4965.44779193,0.0002039,2]
[388873307,1759451436838,-600.0,0.00020393,2]
[388873308,1759451436847,-601.39760918,0.000204,2]
[388873309,1759451436857,-322.6107,0.00020407,2]
[388873310,1759451436867,-646.65982734,0.00020407,2]
[388873311,1759451436876,-183.26500271,0.00020407,2]
[388873312,1759451436885,-1000.0,0.00020407,2]
[388873313,1759451436895,-500.0,0.00020407,2]
[388873314,1759451436906,-1000.0,0.00020407,2]
[388873315,1759451436916,-500.0,0.00020407,2]
[388873316,1759451436926,-1000.0,0.00020407,2]
[388873317,1759451436935,-500.0,0.00020407,2]
[388873318,1759451436945,-1000.0,0.00020407,2]
[388873319,1759451436955,-500.0,0.00020407,2]
[388873320,1759451436966,-1000.0,0.00020407,2]
[388873321,1759451436975,-500.0,0.00020407,2]
[388873322,1759451436985,-1000.0,0.00020407,2]
[388873323,1759451436994,-168.95699978,0.00020407,2]
[388873324,1759451437004,-500.0,0.00020407,2]
[388873325,1759451437014,-1000.0,0.00020407,2]
[388873326,1759451437023,-500.0,0.00020407,2]
[388873327,1759451437034,-402.50799293,0.00020407,2]
[388873328,1759451437046,-500.0,0.00020407,2]
[388873329,1759451437057,-500.0,0.00020407,2]
[388873330,1759451437068,-500.0,0.00020407,2]
[388873331,1759451437079,-500.0,0.00020407,2]
[388873332,1759451437088,-500.0,0.00020407,2]
[388873333,1759451437097,-500.0,0.00020407,2]
[388873334,1759451437107,-248.71531821,0.00020407,2]
[388873335,1759451437116,-2500.0,0.00020411,2]
[388873336,1759451437126,-2500.0,0.00020433,2]
[388873337,1759451437136,-25000.0,0.00020489,2]
[388873338,1759451437146,-150.9999999,0.000205,2]
[388873339,1759451437159,-399.42286766,0.00020581,2]
[388873340,1759451437169,-601.39760918,0.000206,2]
[388873341,1759451437182,-600.0,0.00020618,2]
[388873342,1759451437191,-4846.89,0.00020618,2]
[388873343,1759451437201,-673.79,0.00020655,2]
[388873344,1759451437212,-502.33996231,0.00020721,2]
[388873345,1759451437222,-1000.0,0.00020721,2]
[388873346,1759451437231,-1000.0,0.00020721,2]
[388873347,1759451437240,-512.93992176,0.00020721,2]
[388873348,1759451437250,-924.27112096,0.00020721,2]
[388873349,1759451437259,-681.83000881,0.00020721,2]
[388873350,1759451437270,-1000.0,0.00020721,2]
[388873351,1759451437279,-1000.0,0.00020721,2]
[388873352,1759451437288,-4965.44779193,0.00020749,2]
[388873353,1759451437298,-601.39760918,0.000208,2]
[388873354,1759451437307,-155.19073651,0.00020817,2]
[388873355,1759451437319,-150.74,0.0002084,2]
[388873356,1759451437328,-150.06574641,0.0002084,2]
[388873357,1759451437338,-600.0,0.00020842,2]
[388873358,1759451437348,-300.0,0.00020849,2]
[388873359,1759451437359,-666.0,0.00020849,2]
[388873360,1759451437368,-666.0,0.00020849,2]
[388873361,1759451437378,-77490.9631282,0.0002085,2]
[388873362,1759451437387,-151.0,0.0002085,2]
[388873363,1759451437397,-151.0,0.0002085,2]
[388873364,1759451437407,-151.0,0.0002085,2]
[388873365,1759451437417,-1035.308199,0.0002085,2]
[388873366,1759451437426,-1035.308199,0.0002085,2]
[388873367,1759451437436,-1035.308199,0.0002085,2]
[388873368,1759451437446,-1035.308199,0.0002085,2]
[388873369,1759451437455,-427.605561,0.0002085,2]
[388873370,1759451437466,-151.0,0.0002085,2]
[388873371,1759451437475,-427.605561,0.0002085,2]
[388873372,1759451437485,-151.0,0.0002085,2]
[388873373,1759451437495,-427.605561,0.0002085,2]
[388873374,1759451437505,-151.0,0.0002085,2]
[388873375,1759451437514,-382.433665,0.0002085,2]
[388873376,1759451437524,-157.40575,0.0002085,2]
[388873377,1759451437534,-188.507076,0.0002085,2]
[388873378,1759451437543,-427.605561,0.0002085,2]
[388873379,1759451437553,-382.433665,0.0002085,2]
[388873380,1759451437562,-188.507076,0.0002085,2]
[388873381,1759451437573,-382.433665,0.0002085,2]
[388873382,1759451437582,-188.507076,0.0002085,2]
[388873383,1759451437592,-382.433665,0.0002085,2]
[388873384,1759451437603,-188.507076,0.0002085,2]
[388873385,1759451437613,-296.892143,0.0002085,2]
[388873386,1759451437623,-151.0,0.0002085,2]
[388873387,1759451437633,-151.0,0.0002085,2]
[388873388,1759451437642,-296.892143,0.0002085,2]
[388873389,1759451437652,-151.0,0.0002085,2]
[388873390,1759451437661,-296.892143,0.0002085,2]
[388873391,1759451437671,-151.0,0.0002085,2]
[388873392,1759451437680,-151.0,0.0002085,2]
[388873393,1759451437690,-296.892143,0.0002085,2]
[388873394,1759451437699,-151.0,0.0002085,2]
[388873395,1759451437709,-570.473478,0.0002085,2]
[388873396,1759451437720,-1092.708781,0.0002085,2]
[388873397,1759451437730,-570.473478,0.0002085,2]
[388873398,1759451437740,-1092.708781,0.0002085,2]
[388873399,1759451437750,-570.473478,0.0002085,2]
[388873400,1759451437759,-1092.708781,0.0002085,2]
[388873401,1759451437769,-570.473478,0.0002085,2]
[388873402,1759451437779,-1092.708781,0.0002085,2]
[388873403,1759451437789,-268.531014,0.0002085,2]
[388873404,1759451437799,-512.907862,0.0002085,2]
[388873405,1759451437809,-151.0,0.0002085,2]
[388873406,1759451437819,-268.531014,0.0002085,2]
[388873407,1759451437829,-151.0,0.0002085,2]
[388873408,1759451437840,-512.907862,0.0002085,2]
[388873409,1759451437850,-151.0,0.0002085,2]
[388873410,1759451437859,-268.531014,0.0002085,2]
[388873411,1759451437870,-151.0,0.0002085,2]
[388873412,1759451437879,-512.907862,0.0002085,2]
[388873413,1759451437889,-268.531014,0.0002085,2]
[388873414,1759451437899,-243.54847,0.0002085,2]
[388873415,1759451437908,-296.922202,0.0002085,2]
[388873416,1759451437918,-512.907862,0.0002085,2]
[388873417,1759451437928,-243.54847,0.0002085,2]
[388873418,1759451437938,-219.966522,0.0002085,2]
[388873419,1759451437947,-243.54847,0.0002085,2]
[388873420,1759451437957,-219.966522,0.0002085,2]
[388873421,1759451437968,-243.54847,0.0002085,2]
[388873422,1759451437978,-219.966522,0.0002085,2]
[388873423,1759451437987,-219.966522,0.0002085,2]
[388873424,1759451437997,-597.690663,0.0002085,2]
[388873425,1759451438006,-597.690663,0.0002085,2]
[388873426,1759451438016,-597.690663,0.0002085,2]
[388873427,1759451438026,-597.690663,0.0002085,2]
[388873428,1759451438036,-151.0,0.0002085,2]
[388873429,1759451438046,-151.0,0.0002085,2]
[388873430,1759451438056,-490.43272,0.0002085,2]
[388873431,1759451438065,-151.0,0.0002085,2]
[388873432,1759451438075,-151.0,0.0002085,2]
[388873433,1759451438085,-490.43272,0.0002085,2]
[388873434,1759451438095,-151.0,0.0002085,2]
[388873435,1759451438104,-490.43272,0.0002085,2]
[388873436,1759451438114,-285.225276,0.0002085,2]
[388873437,1759451438123,-490.43272,0.0002085,2]
[388873438,1759451438133,-2500.0,0.00020881,2]
[388873439,1759451438142,-158.58,0.000209,2]
[388873440,1759451438155,-158.58,0.000209,2]
[388873441,1759451438165,-158.58,0.000209,2]
[388873442,1759451438175,-158.58,0.000209,2]
[388873443,1759451438184,-600.0,0.00020933,2]
[388873444,1759451438195,-169.42133343,0.00020965,2]
[388873445,1759451438206,-1503.59993269,0.00021056,2]
[388873446,1759451438217,-600.0,0.00021066,2]
[388873447,1759451438227,-150.74,0.00021097,2]
[388873448,1759451438238,-158.58,0.000211,2]
[388873449,1759451438248,-4965.44779193,0.00021107,2]
[388873450,1759451438258,-175.59,0.00021111,2]
[388873451,1759451438267,-204.0,0.00021237,2]
[388873452,1759451438277,-500.0,0.00021256,2]
[388873453,1759451438286,-784.0,0.00021256,2]
[388873454,1759451438296,-204.0,0.00021259,2]
[388873455,1759451438306,-1250.14216786,0.00021268,2]
[388873456,1759451438315,-290.28217104,0.00021268,2]
[388873457,1759451438325,-1500.0,0.00021268,2]
[388873458,1759451438335,-1500.0,0.00021268,2]
[388873459,1759451438344,-600.0,0.0002129,2]
[388873460,1759451438355,-1473.0,0.00021345,2]
[388873461,1759451438365,-2000.0,0.000214,2]
[388873462,1759451438375,-204.0,0.00021416,2]
[388873463,1759451438386,-225.64,0.00021442,2]
[388873464,1759451438396,-1600.0,0.00021454,2]
[388873465,1759451438405,-4965.44779193,0.00021466,2]
[388873466,1759451438415,-151.0,0.00021466,2]
[388873467,1759451438425,-151.0,0.00021466,2]
[388873468,1759451438435,-151.0,0.00021466,2]
[388873469,1759451438444,-2130.48138,0.00021466,2]
[388873470,1759451438454,-197.547129,0.00021466,2]
[388873471,1759451438465,-2130.48138,0.00021466,2]
[388873472,1759451438475,-197.547129,0.00021466,2]
[388873473,1759451438484,-2130.48138,0.00021466,2]
[388873474,1759451438494,-197.547129,0.00021466,2]
[388873475,1759451438504,-2130.48138,0.00021466,2]
[388873476,1759451438514,-197.547129,0.00021466,2]
[388873477,1759451438523,-151.0,0.00021466,2]
[388873478,1759451438533,-151.0,0.00021466,2]
[388873479,1759451438542,-382.963178,0.00021466,2]
[388873480,1759451438552,-640.844952,0.00021466,2]
[388873481,1759451438561,-279.442538,0.00021466,2]
[388873482,1759451438570,-382.963178,0.00021466,2]
[388873483,1759451438579,-640.844952,0.00021466,2]
[388873484,1759451438589,-279.442538,0.00021466,2]
[388873485,1759451438622,-382.963178,0.00021466,2]
[388873486,1759451438632,-640.844952,0.00021466,2]
[388873487,1759451438642,-151.0,0.00021466,2]
[388873488,1759451438651,-279.442538,0.00021466,2]
[388873489,1759451438660,-382.963178,0.00021466,2]
[388873490,1759451438670,-640.844952,0.00021466,2]
[388873491,1759451438680,-151.0,0.00021466,2]
[388873492,1759451438690,-566.3131,0.00021466,2]
[388873493,1759451438699,-279.442538,0.00021466,2]
[388873494,1759451438709,-566.3131,0.00021466,2]
[388873495,1759451438719,-566.3131,0.00021466,2]
[388873496,1759451438729,-566.3131,0.00021466,2]
[388873497,1759451438739,-151.0,0.00021466,2]
[388873498,1759451438748,-151.0,0.00021466,2]
[388873499,1759451438758,-151.0,0.00021466,2]
[388873500,1759451438768,-151.0,0.00021466,2]
[388873501,1759451438778,-151.0,0.00021466,2]
[388873502,1759451438788,-151.0,0.00021466,2]
[388873503,1759451438797,-151.0,0.00021466,2]
[388873504,1759451438807,-151.0,0.00021466,2]
[388873505,1759451438817,-151.0,0.00021466,2]
[388873506,1759451438827,-151.0,0.00021466,2]
[388873507,1759451438836,-151.0,0.00021466,2]
[388873508,1759451438845,-151.0,0.00021466,2]
[388873509,1759451438855,-399.42286766,0.00021489,2]
[388873510,1759451438866,-200.0,0.00021494,2]
[388873511,1759451438876,-1000.0,0.000215,2]
[388873512,1759451438886,-600.0,0.00021514,2]
[388873513,1759451438896,-153.11,0.00021524,4]
[388873514,1759451438905,-500.0,0.00021525,2]
[388873515,1759451438916,-600.0,0.00021538,2]
[388873516,1759451438930,-500.0,0.0002157,2]
[388873517,1759451438940,-801.0729349,0.0002157,2]
[388873518,1759451438950,-2027.974,0.00021589,2]
[388873519,1759451438960,-500.0,0.00021589,2]
[388873520,1759451438970,-383.06358,0.00021589,2]
[388873521,1759451438980,-383.06358,0.00021589,2]
[388873522,1759451438990,-383.06358,0.00021589,2]
[388873523,1759451439006,-383.06358,0.00021589,2]
[388873524,1759451439016,-151.0,0.00021589,2]
[388873525,1759451439035,-151.0,0.00021589,2]
[388873526,1759451439044,-151.0,0.00021589,2]
[388873527,1759451439053,-151.0,0.00021589,2]
[388873528,1759451439063,-162.266241,0.00021589,2]
[388873529,1759451439072,-151.0,0.00021589,2]
[388873530,1759451439082,-151.0,0.00021589,2]
[388873531,1759451439091,-601.981582,0.00021589,2]
[388873532,1759451439101,-170.993713,0.00021589,2]
[388873533,1759451439111,-151.0,0.00021589,2]
[388873534,1759451439120,-208.828895,0.00021589,2]
[388873535,1759451439130,-170.993713,0.00021589,2]
[388873536,1759451439140,-601.981582,0.00021589,2]
[388873537,1759451439152,-151.0,0.00021589,2]
[388873538,1759451439162,-2939.689613,0.00021589,2]
[388873539,1759451439172,-170.993713,0.00021589,2]
[388873540,1759451439182,-601.981582,0.00021589,2]
[388873541,1759451439192,-208.828895,0.00021589,2]
[388873542,1759451439201,-151.0,0.00021589,2]
[388873543,1759451439211,-151.0,0.00021589,2]
[388873544,1759451439222,-2939.689613,0.00021589,2]
[388873545,1759451439232,-601.981582,0.00021589,2]
[388873546,1759451439242,-170.993713,0.00021589,2]
[388873547,1759451439252,-208.828895,0.00021589,2]
[388873548,1759451439262,-2939.689613,0.00021589,2]
[388873549,1759451439271,-208.828895,0.00021589,2]
[388873550,1759451439281,-151.0,0.00021589,2]
[388873551,1759451439291,-2939.689613,0.00021589,2]
[388873552,1759451439301,-151.0,0.00021589,2]
[388873553,1759451439311,-151.0,0.00021589,2]
[388873554,1759451439321,-151.0,0.00021589,2]
[388873555,1759451439331,-151.0,0.00021589,2]
[388873556,1759451439342,-151.0,0.00021589,2]
[388873557,1759451439352,-151.0,0.00021589,2]
[388873558,1759451439362,-151.0,0.00021589,2]
[388873559,1759451439372,-151.0,0.00021589,2]
[388873560,1759451439381,-151.0,0.00021589,2]
[388873561,1759451439393,-619.255844,0.00021589,2]
[388873562,1759451439408,-151.0,0.00021589,2]
[388873563,1759451439418,-619.255844,0.00021589,2]
[388873564,1759451439428,-619.255844,0.00021589,2]
[388873565,1759451439437,-619.255844,0.00021589,2]
[388873566,1759451439447,-151.0,0.00021589,2]
[388873567,1759451439457,-151.0,0.00021589,2]
[388873568,1759451439475,-200.0,0.000216,2]
[388873569,1759451439484,-300.0,0.00021635,2]
[388873570,1759451439494,-666.0,0.00021635,2]
[388873571,1759451439503,-4781.5798305,0.00021636,2]
[388873572,1759451439512,-3089.3297431,0.00021636,2]
[388873573,1759451439523,-30141.6247209,0.00021636,2]
[388873574,1759451439532,-151.0,0.00021636,2]
[388873575,1759451439541,-20408.01055,0.00021636,2]
[388873576,1759451439551,-151.0,0.00021636,2]
[388873577,1759451439561,-151.0,0.00021636,2]
[388873578,1759451439571,-151.0,0.00021636,2]
[388873579,1759451439581,-151.0,0.00021636,2]
[388873580,1759451439590,-151.0,0.00021636,2]
[388873581,1759451439600,-151.0,0.00021636,2]
[388873582,1759451439612,-151.0,0.00021636,2]
[388873583,1759451439621,-151.0,0.00021636,2]
[388873584,1759451439631,-294.135568,0.00021636,2]
[388873585,1759451439641,-481.846634,0.00021636,2]
[388873586,1759451439650,-151.0,0.00021636,2]
[388873587,1759451439659,-481.846634,0.00021636,2]
[388873588,1759451439669,-481.846634,0.00021636,2]
[388873589,1759451439679,-481.846634,0.00021636,2]
[388873590,1759451439689,-513.625311,0.00021636,2]
[388873591,1759451439698,-510.136327,0.00021636,2]
[388873592,1759451439708,-513.625311,0.00021636,2]
[388873593,1759451439718,-510.136327,0.00021636,2]
[388873594,1759451439728,-513.625311,0.00021636,2]
[388873595,1759451439738,-510.136327,0.00021636,2]
[388873596,1759451439749,-513.625311,0.00021636,2]
[388873597,1759451439759,-510.136327,0.00021636,2]
[388873599,1759451439768,-151.0,0.00021636,2]
[388873601,1759451439778,-548.842085,0.00021636,2]
[388873602,1759451439787,-548.842085,0.00021636,2]
[388873603,1759451439796,-548.842085,0.00021636,2]
[388873604,1759451439806,-548.842085,0.00021636,2]
[388873605,1759451439817,-555.778826,0.00021636,2]
[388873606,1759451439827,-555.778826,0.00021636,2]
[388873607,1759451439837,-151.0,0.00021636,2]
[388873608,1759451439847,-555.778826,0.00021636,2]
[388873609,1759451439856,-151.0,0.00021636,2]
[388873610,1759451439867,-555.778826,0.00021636,2]
[388873611,1759451439876,-1224.403044,0.00021636,2]
[388873612,1759451439886,-222.932532,0.00021636,2]
[388873613,1759451439895,-1224.403044,0.00021636,2]
[388873614,1759451439905,-151.0,0.00021636,2]
[388873615,1759451439916,-222.932532,0.00021636,2]
[388873616,1759451439927,-151.0,0.00021636,2]
[388873617,1759451439937,-1224.403044,0.00021636,2]
[388873618,1759451439947,-222.932532,0.00021636,2]
[388873619,1759451439956,-151.0,0.00021636,2]
[388873620,1759451439966,-512.143181,0.00021636,2]
[388873621,1759451439977,-1224.403044,0.00021636,2]
[388873622,1759451439986,-151.0,0.00021636,2]
[388873623,1759451439996,-151.0,0.00021636,2]
[388873624,1759451440006,-222.932532,0.00021636,2]
[388873625,1759451440018,-151.0,0.00021636,2]
[388873626,1759451440027,-512.143181,0.00021636,2]
[388873627,1759451440036,-151.0,0.00021636,2]
[388873628,1759451440046,-151.0,0.00021636,2]
[388873629,1759451440055,-151.0,0.00021636,2]
[388873630,1759451440065,-512.143181,0.00021636,2]
[388873631,1759451440074,-151.0,0.00021636,2]
[388873632,1759451440083,-512.143181,0.00021636,2]
[388873633,1759451440093,-195.242345,0.00021636,2]
[388873634,1759451440104,-195.242345,0.00021636,2]
[388873635,1759451440114,-151.0,0.00021636,2]
[388873636,1759451440125,-195.242345,0.00021636,2]
[388873637,1759451440135,-195.242345,0.00021636,2]
[388873638,1759451440144,-151.0,0.00021636,2]
[388873639,1759451440158,-151.0,0.00021636,2]
[388873640,1759451440167,-151.0,0.00021636,2]
[388873641,1759451440177,-909.38073,0.00021636,2]
[388873642,1759451440187,-151.0,0.00021636,2]
[388873643,1759451440196,-909.38073,0.00021636,2]
[388873644,1759451440206,-909.38073,0.00021636,2]
[388873645,1759451440216,-909.38073,0.00021636,2]
[388873646,1759451440227,-151.0,0.00021636,2]
[388873647,1759451440237,-151.0,0.00021636,2]
[388873648,1759451440247,-151.0,0.00021636,2]
[388873649,1759451440256,-151.0,0.00021636,2]
[388873650,1759451440266,-151.0,0.00021636,2]
[388873651,1759451440276,-151.0,0.00021636,2]
[388873652,1759451440286,-151.0,0.00021636,2]
[388873653,1759451440295,-243.366135,0.00021636,2]
[388873654,1759451440305,-155.447139,0.00021636,2]
[388873655,1759451440573,-243.366135,0.00021636,2]
[388873656,1759451440584,-243.366135,0.00021636,2]
[388873657,1759451440593,-949.331449,0.00021636,2]
[388873658,1759451440603,-243.366135,0.00021636,2]
[388873659,1759451440612,-949.331449,0.00021636,2]
[388873660,1759451440622,-949.331449,0.00021636,2]
[388873661,1759451440632,-949.331449,0.00021636,2]
[388873662,1759451440641,-151.0,0.00021636,2]
[388873663,1759451440651,-916.902764,0.00021636,2]
[388873664,1759451440662,-916.902764,0.00021636,2]
[388873665,1759451440671,-916.902764,0.00021636,2]
[388873666,1759451440681,-916.902764,0.00021636,2]
[388873667,1759451440691,-151.0,0.00021636,2]
[388873668,1759451440701,-151.0,0.00021636,2]
[388873669,1759451440710,-151.00000035,0.00021636,2]
[388873670,1759451440721,-1035.308199,0.00021636,2]
[388873671,1759451440730,-1035.308199,0.00021636,2]
[388873672,1759451440739,-1035.308199,0.00021636,2]
[388873673,1759451440749,-1035.308199,0.00021636,2]
[388873674,1759451440758,-427.605561,0.00021636,2]
[388873675,1759451440768,-151.0,0.00021636,2]
[388873676,1759451440777,-427.605561,0.00021636,2]
[388873677,1759451440786,-151.0,0.00021636,2]
[388873678,1759451440795,-427.605561,0.00021636,2]
[388873679,1759451440805,-151.0,0.00021636,2]
[388873680,1759451440815,-382.433665,0.00021636,2]
[388873681,1759451440824,-188.507076,0.00021636,2]
[388873682,1759451440833,-427.605561,0.00021636,2]
[388873683,1759451440842,-382.433665,0.00021636,2]
[388873684,1759451440852,-188.507076,0.00021636,2]
[388873685,1759451440861,-382.433665,0.00021636,2]
[388873686,1759451440871,-188.507076,0.00021636,2]
[388873687,1759451440880,-382.433665,0.00021636,2]
[388873688,1759451440889,-188.507076,0.00021636,2]
[388873689,1759451440899,-296.892143,0.00021636,2]
[388873690,1759451440908,-151.0,0.00021636,2]
[388873691,1759451440917,-296.892143,0.00021636,2]
[388873692,1759451440927,-151.0,0.00021636,2]
[388873693,1759451440936,-296.892143,0.00021636,2]
[388873694,1759451440945,-151.0,0.00021636,2]
[388873695,1759451440955,-151.0,0.00021636,2]
[388873696,1759451440964,-296.892143,0.00021636,2]
[388873697,1759451440975,-151.0,0.00021636,2]
[388873698,1759451440984,-570.473478,0.00021636,2]
[388873699,1759451440994,-1092.708781,0.00021636,2]
[388873700,1759451441004,-570.473478,0.00021636,2]
[388873701,1759451441013,-1092.708781,0.00021636,2]
[388873702,1759451441024,-570.473478,0.00021636,2]
[388873703,1759451441033,-1092.708781,0.00021636,2]
[388873704,1759451441043,-570.473478,0.00021636,2]
[388873705,1759451441052,-1092.708781,0.00021636,2]
[388873706,1759451441062,-268.531014,0.00021636,2]
[388873707,1759451441071,-512.907862,0.00021636,2]
[388873708,1759451441080,-151.0,0.00021636,2]
[388873709,1759451441090,-268.531014,0.00021636,2]
[388873710,1759451441099,-151.0,0.00021636,2]
[388873711,1759451441108,-512.907862,0.00021636,2]
[388873712,1759451441118,-151.0,0.00021636,2]
[388873713,1759451441128,-268.531014,0.00021636,2]
[388873714,1759451441138,-151.0,0.00021636,2]
[388873715,1759451441147,-512.907862,0.00021636,2]
[388873716,1759451441163,-268.531014,0.00021636,2]
[388873717,1759451441172,-243.54847,0.00021636,2]
[388873718,1759451441181,-512.907862,0.00021636,2]
[388873719,1759451441191,-243.54847,0.00021636,2]
[388873720,1759451441201,-219.966522,0.00021636,2]
[388873721,1759451441211,-243.54847,0.00021636,2]
[388873722,1759451441223,-219.966522,0.00021636,2]
[388873723,1759451441234,-243.54847,0.00021636,2]
[388873724,1759451441244,-219.966522,0.00021636,2]
[388873725,1759451441254,-219.966522,0.00021636,2]
[388873726,1759451441263,-597.690663,0.00021636,2]
[388873727,1759451441272,-597.690663,0.00021636,2]
[388873728,1759451441282,-597.690663,0.00021636,2]
[388873729,1759451441292,-597.690663,0.00021636,2]
[388873730,1759451441302,-151.0,0.00021636,2]
[388873731,1759451441311,-490.43272,0.00021636,2]
[388873732,1759451441321,-151.0,0.00021636,2]
[388873733,1759451441330,-490.43272,0.00021636,2]
[388873734,1759451441340,-151.0,0.00021636,2]
[388873735,1759451441351,-490.43272,0.00021636,2]
[388873736,1759451441361,-490.43272,0.00021636,2]
[388873737,1759451441371,-144029.69917825,0.00021667,2]
[388873738,1759451441381,-425.28893515,0.00021667,2]
[388873739,1759451441390,-249.07481891,0.00021667,2]
[388873740,1759451441400,-803.20093,0.00021667,2]
[388873741,1759451441410,-3134.41735569,0.00021667,2]
[388873742,1759451441419,-166.810454,0.00021668,2]
[388873743,1759451441430,-1248.45511788,0.00021668,2]
[388873744,1759451441440,-1228.32946474,0.0002167,2]
[388873745,1759451441450,-500.0,0.0002167,2]
[388873746,1759451441459,-500.0,0.0002167,2]
[388873747,1759451441469,-151.0,0.0002167,2]
[388873748,1759451441479,-151.0,0.0002167,2]
[388873749,1759451441489,-259.282266,0.0002167,2]
[388873750,1759451441499,-151.0,0.0002167,2]
[388873751,1759451441508,-151.0,0.0002167,2]
[388873752,1759451441519,-151.0,0.0002167,2]
[388873753,1759451441528,-151.0,0.0002167,2]
[388873754,1759451441538,-151.0,0.0002167,2]
[388873755,1759451441548,-151.0,0.0002167,2]
[388873756,1759451441557,-151.0,0.0002167,2]
[388873757,1759451441566,-189.71436068,0.0002167,2]
[388873758,1759451441576,-982.79014835,0.00021671,2]
[388873759,1759451441586,-429.47876578,0.00021673,2]
[388873760,1759451441595,-1289.69250777,0.00021674,2]
[388873761,1759451441604,-314.12179391,0.00021674,2]
[388873762,1759451441614,-314.12179391,0.00021674,2]
[388873763,1759451441624,-1012.07037802,0.00021674,2]
[388873764,1759451441634,-206.34,0.00021675,2]
[388873765,1759451441644,-517.46,0.00021675,2]
[388873766,1759451441653,-516.81,0.00021676,2]
[388873767,1759451441664,-1851.77667402,0.00021676,2]
[388873768,1759451441673,-3497.15151311,0.00021676,2]